[Event "Titled Tuesday Blitz May 11 2021"]
[White "Ambrogi, Agustin"]
[Black "Krivonosov, Oleg"]
[WhiteFideId "170933"]
[BlackFideId "11600349"]
[WhiteElo "2214"]
[BlackElo "2469"]
[Result "0-1"]
[Round "01"]
[TimeControl "180+1"]
[Date "2021.05.11"]
[WhiteClock "0:00:03"]
[BlackClock "0:00:23"]

1. d4 {[%clk 0:03:00]}  d5 {[%clk 0:02:59]} 2. e3 {[%clk 0:03:00]}  Nf6 {[%clk 0:02:58]} 3. Bd3 {[%clk 0:03:00]}  g6 {[%clk 0:02:52]} 4. Nf3 {[%clk 0:02:55]}  Bg7 {[%clk 0:02:52]} 5. O-O {[%clk 0:02:54]}  O-O {[%clk 0:02:51]} 6. Re1 {[%clk 0:02:53]}  c5 {[%clk 0:02:48]} 7. c3 {[%clk 0:02:53]}  Nbd7 {[%clk 0:02:46]} 8. Nbd2 {[%clk 0:02:53]}  b6 {[%clk 0:02:45]} 9. Qe2 {[%clk 0:02:52]}  Bb7 {[%clk 0:02:44]} 10. a3 {[%clk 0:02:43]}  Qc7 {[%clk 0:02:43]} 11. Bb5 {[%clk 0:02:33]}  e5 {[%clk 0:02:40]} 12. dxe5 {[%clk 0:02:30]}  Nxe5 {[%clk 0:02:39]} 13. Nxe5 {[%clk 0:02:31]}  Qxe5 {[%clk 0:02:39]} 14. Nf3 {[%clk 0:02:29]}  Qe7 {[%clk 0:02:38]} 15. Bd2 {[%clk 0:02:25]}  Ne4 {[%clk 0:02:37]} 16. Rad1 {[%clk 0:02:23]}  Rad8 {[%clk 0:02:33]} 17. Bc1 {[%clk 0:02:18]}  h6 {[%clk 0:02:31]} 18. Ba6 {[%clk 0:02:16]}  Kh7 {[%clk 0:02:29]} 19. Bxb7 {[%clk 0:02:16]}  Qxb7 {[%clk 0:02:29]} 20. Nd2 {[%clk 0:02:14]}  f5 {[%clk 0:02:22]} 21. Nxe4 {[%clk 0:02:14]}  dxe4 {[%clk 0:02:21]} 22. Rxd8 {[%clk 0:02:06]}  Rxd8 {[%clk 0:02:20]} 23. Rd1 {[%clk 0:02:06]}  Qe7 {[%clk 0:02:18]} 24. c4 {[%clk 0:01:58]}  Rd6 {[%clk 0:02:15]} 25. Rd5 {[%clk 0:01:54]}  Rxd5 {[%clk 0:02:05]} 26. cxd5 {[%clk 0:01:53]}  Qd6 {[%clk 0:02:04]} 27. Qd1 {[%clk 0:01:47]}  b5 {[%clk 0:02:02]} 28. b3 {[%clk 0:01:28]}  Bc3 {[%clk 0:01:52]} 29. f4 {[%clk 0:01:12]}  a5 {[%clk 0:01:41]} 30. a4 {[%clk 0:01:04]}  b4 {[%clk 0:01:39]} 31. Kf2 {[%clk 0:01:00]}  h5 {[%clk 0:01:35]} 32. Ke2 {[%clk 0:00:58]}  Qa6+ {[%clk 0:01:28]} 33. Kf2 {[%clk 0:00:57]}  Qd3 {[%clk 0:01:18]} 34. Qxd3 {[%clk 0:00:49]}  exd3 {[%clk 0:01:19]} 35. d6 {[%clk 0:00:49]}  Kg8 {[%clk 0:01:16]} 36. d7 {[%clk 0:00:48]}  Bf6 {[%clk 0:01:15]} 37. e4 {[%clk 0:00:38]}  fxe4 {[%clk 0:01:09]} 38. Be3 {[%clk 0:00:36]}  c4 {[%clk 0:01:06]} 39. bxc4 {[%clk 0:00:33]}  b3 {[%clk 0:01:06]} 40. Bc1 {[%clk 0:00:14]}  Bd4+ {[%clk 0:01:05]} 41. Ke1 {[%clk 0:00:13]}  Bb6 {[%clk 0:01:05]} 42. Bb2 {[%clk 0:00:13]}  Kf7 {[%clk 0:01:04]} 43. c5 {[%clk 0:00:12]}  Bd8 {[%clk 0:01:00]} 44. c6 {[%clk 0:00:13]}  Ke6 {[%clk 0:01:00]} 45. Kd2 {[%clk 0:00:12]}  Kd5 {[%clk 0:00:59]} 46. Bf6 {[%clk 0:00:11]}  Bb6 {[%clk 0:00:57]} 47. d8=Q+ {[%clk 0:00:10]}  Bxd8 {[%clk 0:00:56]} 48. Bxd8 {[%clk 0:00:11]}  Kxc6 {[%clk 0:00:52]} 49. Bf6 {[%clk 0:00:11]}  Kd5 {[%clk 0:00:50]} 50. Ke3 {[%clk 0:00:08]}  Kc4 {[%clk 0:00:49]} 51. Bb2 {[%clk 0:00:06]}  Kd5 {[%clk 0:00:44]} 52. g3 {[%clk 0:00:06]}  Ke6 {[%clk 0:00:44]} 53. h3 {[%clk 0:00:06]}  Kf5 {[%clk 0:00:44]} 54. Bc3 {[%clk 0:00:06]}  g5 {[%clk 0:00:40]} 55. fxg5 {[%clk 0:00:06]}  Kxg5 {[%clk 0:00:40]} 56. g4 {[%clk 0:00:05]}  hxg4 {[%clk 0:00:40]} 57. hxg4 {[%clk 0:00:06]}  Kxg4 {[%clk 0:00:40]} 58. Bb2 {[%clk 0:00:06]}  Kf5 {[%clk 0:00:39]} 59. Bc3 {[%clk 0:00:07]}  Ke6 {[%clk 0:00:39]} 60. Bb2 {[%clk 0:00:07]}  Kd5 {[%clk 0:00:39]} 61. Bc3 {[%clk 0:00:07]}  Kc4 {[%clk 0:00:39]} 62. Bb2 {[%clk 0:00:07]}  Kb4 {[%clk 0:00:38]} 63. Kd2 {[%clk 0:00:07]}  Kc4 {[%clk 0:00:34]} 64. Ke3 {[%clk 0:00:04]}  Kb4 {[%clk 0:00:33]} 65. Kd2 {[%clk 0:00:05]}  Kxa4 {[%clk 0:00:33]} 66. Kc3 {[%clk 0:00:05]}  Kb5 {[%clk 0:00:29]} 67. Kxb3 {[%clk 0:00:05]}  e3 {[%clk 0:00:26]} 68. Kc3 {[%clk 0:00:04]}  e2 {[%clk 0:00:24]} 69. Kd2 {[%clk 0:00:03]}  Kc4 {[%clk 0:00:24]} 70. Ba3 {[%clk 0:00:03]}  a4 {[%clk 0:00:23]} 0-1


[Site "https://www.chess.com"]

[Event "Titled Tuesday Blitz May 11 2021"]
[White "Artemiev, Vladislav"]
[Black "Tsyhanchuk_Stanislav"]
[WhiteFideId "24101605"]
[WhiteElo "2783"]
[BlackElo "2475"]
[Result "1-0"]
[Round "01"]
[TimeControl "180+1"]
[Date "2021.05.11"]
[WhiteClock "0:01:21"]
[BlackClock "0:00:02"]

1. Nf3 {[%clk 0:02:59]}  c5 {[%clk 0:02:55]} 2. b3 {[%clk 0:02:57]}  Nf6 {[%clk 0:02:51]} 3. Bb2 {[%clk 0:02:56]}  g6 {[%clk 0:02:45]} 4. c4 {[%clk 0:02:54]}  Bg7 {[%clk 0:02:44]} 5. g3 {[%clk 0:02:54]}  b6 {[%clk 0:02:43]} 6. Bg2 {[%clk 0:02:54]}  Bb7 {[%clk 0:02:44]} 7. O-O {[%clk 0:02:55]}  O-O {[%clk 0:02:44]} 8. e3 {[%clk 0:02:55]}  e6 {[%clk 0:02:25]} 9. d4 {[%clk 0:02:54]}  cxd4 {[%clk 0:02:24]} 10. Nxd4 {[%clk 0:02:48]}  Bxg2 {[%clk 0:02:15]} 11. Kxg2 {[%clk 0:02:48]}  d5 {[%clk 0:02:10]} 12. Nd2 {[%clk 0:02:48]}  Qc8 {[%clk 0:02:01]} 13. Rc1 {[%clk 0:02:44]}  Qb7 {[%clk 0:02:01]} 14. Kg1 {[%clk 0:02:25]}  Nbd7 {[%clk 0:01:56]} 15. Qe2 {[%clk 0:02:22]}  a6 {[%clk 0:01:49]} 16. cxd5 {[%clk 0:02:17]}  Nxd5 {[%clk 0:01:43]} 17. Nc4 {[%clk 0:02:17]}  Nc5 {[%clk 0:01:08]} 18. Rfd1 {[%clk 0:02:06]}  Rfd8 {[%clk 0:01:04]} 19. Na5 {[%clk 0:01:38]}  Qd7 {[%clk 0:00:17]} 20. Nac6 {[%clk 0:01:36]}  Rdc8 {[%clk 0:00:16]} 21. e4 {[%clk 0:01:37]}  Ne7 {[%clk 0:00:06]} 22. Nf5 {[%clk 0:01:34]}  exf5 {[%clk 0:00:04]} 23. Rxd7 {[%clk 0:01:33]}  Nxc6 {[%clk 0:00:04]} 24. Rd6 {[%clk 0:01:23]}  Ne5 {[%clk 0:00:02]} 25. exf5 {[%clk 0:01:21]} 1-0


[Site "https://www.chess.com"]

[Event "Titled Tuesday Blitz May 11 2021"]
[White "Atanasov, Anthony"]
[Black "Pantsulaia, Levan"]
[WhiteFideId "2623897"]
[BlackFideId "13602071"]
[WhiteElo "1889"]
[BlackElo "2530"]
[Result "1-0"]
[Round "01"]
[TimeControl "180+1"]
[Date "2021.05.11"]
[WhiteClock "0:00:08"]
[BlackClock "0:00:03"]

1. d4 {[%clk 0:03:00]}  Nf6 {[%clk 0:02:57]} 2. Nf3 {[%clk 0:02:57]}  c5 {[%clk 0:02:56]} 3. c3 {[%clk 0:02:56]}  b6 {[%clk 0:02:53]} 4. Bf4 {[%clk 0:02:54]}  Bb7 {[%clk 0:02:49]} 5. e3 {[%clk 0:02:54]}  d6 {[%clk 0:02:43]} 6. Nbd2 {[%clk 0:02:53]}  Nbd7 {[%clk 0:02:42]} 7. h3 {[%clk 0:02:48]}  g6 {[%clk 0:02:43]} 8. Be2 {[%clk 0:02:49]}  Bg7 {[%clk 0:02:43]} 9. a4 {[%clk 0:02:49]}  a6 {[%clk 0:02:42]} 10. O-O {[%clk 0:02:49]}  O-O {[%clk 0:02:41]} 11. Bh2 {[%clk 0:02:49]}  Rc8 {[%clk 0:02:34]} 12. Re1 {[%clk 0:02:44]}  Rc7 {[%clk 0:02:34]} 13. Bf1 {[%clk 0:02:43]}  Qa8 {[%clk 0:02:33]} 14. Qc2 {[%clk 0:02:34]}  Rfc8 {[%clk 0:02:31]} 15. Qb3 {[%clk 0:02:22]}  Bd5 {[%clk 0:02:25]} 16. c4 {[%clk 0:02:19]}  Bb7 {[%clk 0:02:17]} 17. d5 {[%clk 0:02:18]}  Ne8 {[%clk 0:02:13]} 18. e4 {[%clk 0:01:52]}  Rb8 {[%clk 0:02:13]} 19. Qc2 {[%clk 0:01:46]}  Ne5 {[%clk 0:02:09]} 20. Nxe5 {[%clk 0:01:45]}  Bxe5 {[%clk 0:02:10]} 21. Bxe5 {[%clk 0:01:44]}  dxe5 {[%clk 0:02:10]} 22. Qc3 {[%clk 0:01:45]}  f6 {[%clk 0:02:09]} 23. f4 {[%clk 0:01:44]}  exf4 {[%clk 0:02:07]} 24. e5 {[%clk 0:01:43]}  Rd8 {[%clk 0:01:44]} 25. Ne4 {[%clk 0:01:39]}  Kg7 {[%clk 0:01:34]} 26. d6 {[%clk 0:01:37]}  Bxe4 {[%clk 0:01:34]} 27. dxc7 {[%clk 0:01:35]}  Nxc7 {[%clk 0:01:35]} 28. exf6+ {[%clk 0:01:34]}  exf6 {[%clk 0:01:35]} 29. Rad1 {[%clk 0:01:32]}  Rxd1 {[%clk 0:01:29]} 30. Rxd1 {[%clk 0:01:33]}  Qc6 {[%clk 0:01:14]} 31. Qd2 {[%clk 0:01:24]}  Ne6 {[%clk 0:01:14]} 32. Qd6 {[%clk 0:01:12]}  Kh6 {[%clk 0:00:36]} 33. Qe7 {[%clk 0:00:37]}  Nd4 {[%clk 0:00:34]} 34. b4 {[%clk 0:00:18]}  g5 {[%clk 0:00:30]} 35. b5 {[%clk 0:00:17]}  axb5 {[%clk 0:00:28]} 36. cxb5 {[%clk 0:00:18]}  Qa8 {[%clk 0:00:19]} 37. Qxf6+ {[%clk 0:00:17]}  Bg6 {[%clk 0:00:20]} 38. h4 {[%clk 0:00:16]}  gxh4 {[%clk 0:00:11]} 39. Qxf4+ {[%clk 0:00:16]}  Kg7 {[%clk 0:00:10]} 40. Qe5+ {[%clk 0:00:17]}  Kh6 {[%clk 0:00:10]} 41. Qf4+ {[%clk 0:00:17]}  Kg7 {[%clk 0:00:09]} 42. Qxh4 {[%clk 0:00:16]}  Qxa4 {[%clk 0:00:08]} 43. Qe7+ {[%clk 0:00:17]}  Kh6 {[%clk 0:00:08]} 44. Qe3+ {[%clk 0:00:16]}  Kg7 {[%clk 0:00:08]} 45. Qe5+ {[%clk 0:00:16]}  Kh6 {[%clk 0:00:07]} 46. Re1 {[%clk 0:00:16]}  Qa7 {[%clk 0:00:06]} 47. Qf4+ {[%clk 0:00:15]}  Kg7 {[%clk 0:00:05]} 48. Qg5 {[%clk 0:00:15]}  Nf5 {[%clk 0:00:03]} 49. Bd3 {[%clk 0:00:13]}  Qf7 {[%clk 0:00:04]} 50. Bxf5 {[%clk 0:00:13]}  Qxf5 {[%clk 0:00:05]} 51. Re7+ {[%clk 0:00:07]}  Kf8 {[%clk 0:00:04]} 52. Qxf5+ {[%clk 0:00:07]}  Bxf5 {[%clk 0:00:05]} 53. Rb7 {[%clk 0:00:07]}  c4 {[%clk 0:00:05]} 54. Rxb6 {[%clk 0:00:08]}  c3 {[%clk 0:00:05]} 55. Rc6 {[%clk 0:00:08]}  c2 {[%clk 0:00:06]} 56. b6 {[%clk 0:00:09]}  Be4 {[%clk 0:00:03]} 57. Rxc2 {[%clk 0:00:08]} 1-0


[Site "https://www.chess.com"]

[Event "Titled Tuesday Blitz May 11 2021"]
[White "Bethke, Richard"]
[Black "Abdrlauf, Elham"]
[WhiteFideId "12959243"]
[BlackFideId "1533533"]
[WhiteElo "2434"]
[BlackElo "2326"]
[Result "0-1"]
[Round "01"]
[TimeControl "180+1"]
[Date "2021.05.11"]
[WhiteClock "0:00:08"]
[BlackClock "0:00:08"]

1. e4 {[%clk 0:02:26]}  c6 {[%clk 0:02:59]} 2. d4 {[%clk 0:01:39]}  d5 {[%clk 0:03:00]} 3. e5 {[%clk 0:01:39]}  c5 {[%clk 0:03:00]} 4. dxc5 {[%clk 0:01:39]}  e6 {[%clk 0:03:00]} 5. a3 {[%clk 0:01:38]}  Nd7 {[%clk 0:03:00]} 6. Nf3 {[%clk 0:01:38]}  Nxc5 {[%clk 0:03:00]} 7. b4 {[%clk 0:01:38]}  Ne4 {[%clk 0:03:01]} 8. Bb2 {[%clk 0:01:38]}  a5 {[%clk 0:03:01]} 9. b5 {[%clk 0:01:35]}  Bc5 {[%clk 0:03:00]} 10. Bd4 {[%clk 0:01:35]}  Qb6 {[%clk 0:02:59]} 11. Be2 {[%clk 0:01:18]}  Nh6 {[%clk 0:02:52]} 12. O-O {[%clk 0:01:18]}  Nf5 {[%clk 0:02:50]} 13. Bxc5 {[%clk 0:01:18]}  Qxc5 {[%clk 0:02:51]} 14. Nbd2 {[%clk 0:01:18]}  Nc3 {[%clk 0:02:46]} 15. Nb3 {[%clk 0:01:18]}  Nxd1 {[%clk 0:02:27]} 16. Nxc5 {[%clk 0:01:17]}  Nc3 {[%clk 0:02:28]} 17. Bd3 {[%clk 0:01:17]}  b6 {[%clk 0:02:13]} 18. Nb3 {[%clk 0:01:09]}  a4 {[%clk 0:02:04]} 19. Nbd4 {[%clk 0:01:04]}  Nxd4 {[%clk 0:02:02]} 20. Nxd4 {[%clk 0:01:05]}  Bd7 {[%clk 0:02:03]} 21. Ne2 {[%clk 0:00:52]}  Nxe2+ {[%clk 0:01:52]} 22. Bxe2 {[%clk 0:00:51]}  Rc8 {[%clk 0:01:53]} 23. Bd3 {[%clk 0:00:46]}  Rc5 {[%clk 0:01:46]} 24. Rfb1 {[%clk 0:00:43]}  Ke7 {[%clk 0:01:46]} 25. Rb4 {[%clk 0:00:42]}  Ra8 {[%clk 0:01:45]} 26. f4 {[%clk 0:00:37]}  Ra5 {[%clk 0:01:44]} 27. c4 {[%clk 0:00:33]}  dxc4 {[%clk 0:01:40]} 28. Bxc4 {[%clk 0:00:34]}  Bxb5 {[%clk 0:01:32]} 29. Bxb5 {[%clk 0:00:35]}  Rcxb5 {[%clk 0:01:32]} 30. Rab1 {[%clk 0:00:35]}  Rxb4 {[%clk 0:01:25]} 31. Rxb4 {[%clk 0:00:36]}  b5 {[%clk 0:01:25]} 32. Kf2 {[%clk 0:00:30]}  Kd7 {[%clk 0:01:25]} 33. Ke3 {[%clk 0:00:30]}  Kc6 {[%clk 0:01:25]} 34. Rd4 {[%clk 0:00:23]}  Ra7 {[%clk 0:01:20]} 35. Rd8 {[%clk 0:00:21]}  Rc7 {[%clk 0:01:16]} 36. Kd4 {[%clk 0:00:18]}  Kb6 {[%clk 0:00:41]} 37. Rb8+ {[%clk 0:00:18]}  Ka6 {[%clk 0:00:42]} 38. Ra8+ {[%clk 0:00:18]}  Kb7 {[%clk 0:00:42]} 39. Rd8 {[%clk 0:00:18]}  g6 {[%clk 0:00:33]} 40. g4 {[%clk 0:00:17]}  Rc4+ {[%clk 0:00:33]} 41. Ke3 {[%clk 0:00:13]}  Rc3+ {[%clk 0:00:33]} 42. Kd4 {[%clk 0:00:14]}  Rxa3 {[%clk 0:00:27]} 43. Kc5 {[%clk 0:00:14]}  Rb3 {[%clk 0:00:11]} 44. Rd7+ {[%clk 0:00:14]}  Ka6 {[%clk 0:00:11]} 45. Rxf7 {[%clk 0:00:15]}  Rc3+ {[%clk 0:00:09]} 46. Kb4 {[%clk 0:00:15]}  Rc4+ {[%clk 0:00:09]} 47. Ka3 {[%clk 0:00:15]}  Re4 {[%clk 0:00:08]} 48. Rf6 {[%clk 0:00:12]}  Ka5 {[%clk 0:00:08]} 49. Rxe6 {[%clk 0:00:13]}  Re2 {[%clk 0:00:07]} 50. Ra6+ {[%clk 0:00:08]}  Kxa6 {[%clk 0:00:07]} 51. Kb4 {[%clk 0:00:08]}  Kb6 {[%clk 0:00:06]} 52. g5 {[%clk 0:00:08]}  Re3 {[%clk 0:00:07]} 53. h4 {[%clk 0:00:08]}  Rb3# {[%clk 0:00:08]} 0-1


[Site "https://www.chess.com"]

[Event "Titled Tuesday Blitz May 11 2021"]
[White "Chernomordik, Pavel"]
[Black "Lovkov, Roman"]
[WhiteFideId "2804530"]
[BlackFideId "4157389"]
[WhiteElo "2299"]
[BlackElo "2387"]
[Result "1-0"]
[Round "01"]
[TimeControl "180+1"]
[Date "2021.05.11"]
[WhiteClock "0:00:16"]
[BlackClock "0:00:01"]

1. e4 {[%clk 0:03:00]}  c5 {[%clk 0:02:31]} 2. Nc3 {[%clk 0:02:59]}  g6 {[%clk 0:02:31]} 3. f4 {[%clk 0:02:59]}  Bg7 {[%clk 0:02:31]} 4. Nf3 {[%clk 0:02:59]}  Nc6 {[%clk 0:02:32]} 5. Bb5 {[%clk 0:02:58]}  Nd4 {[%clk 0:02:31]} 6. Bc4 {[%clk 0:02:57]}  e6 {[%clk 0:02:31]} 7. e5 {[%clk 0:02:57]}  d5 {[%clk 0:02:25]} 8. Nxd4 {[%clk 0:02:56]}  cxd4 {[%clk 0:02:23]} 9. Bb5+ {[%clk 0:02:55]}  Kf8 {[%clk 0:02:13]} 10. Ne2 {[%clk 0:02:54]}  Qb6 {[%clk 0:02:11]} 11. Bd3 {[%clk 0:02:53]}  f6 {[%clk 0:02:11]} 12. O-O {[%clk 0:02:44]}  Bd7 {[%clk 0:02:09]} 13. a4 {[%clk 0:02:40]}  Ne7 {[%clk 0:02:09]} 14. a5 {[%clk 0:02:37]}  Qc5 {[%clk 0:02:09]} 15. b4 {[%clk 0:02:33]}  Qc7 {[%clk 0:02:01]} 16. Nxd4 {[%clk 0:02:29]}  Kf7 {[%clk 0:01:52]} 17. b5 {[%clk 0:02:21]}  Rhc8 {[%clk 0:01:51]} 18. Ba3 {[%clk 0:02:18]}  Qxa5 {[%clk 0:01:37]} 19. Bxe7 {[%clk 0:02:03]}  Qb6 {[%clk 0:01:37]} 20. c3 {[%clk 0:01:56]}  Kxe7 {[%clk 0:01:37]} 21. Qe2 {[%clk 0:01:48]}  Kf7 {[%clk 0:01:30]} 22. Rae1 {[%clk 0:01:46]}  Re8 {[%clk 0:01:29]} 23. Kh1 {[%clk 0:01:41]}  Kg8 {[%clk 0:01:28]} 24. Qg4 {[%clk 0:01:32]}  fxe5 {[%clk 0:01:12]} 25. fxe5 {[%clk 0:01:31]}  Rf8 {[%clk 0:01:12]} 26. Nf3 {[%clk 0:01:22]}  Qd8 {[%clk 0:00:44]} 27. h4 {[%clk 0:01:19]}  Qe7 {[%clk 0:00:40]} 28. h5 {[%clk 0:01:15]}  Be8 {[%clk 0:00:10]} 29. hxg6 {[%clk 0:01:13]}  Bxg6 {[%clk 0:00:10]} 30. Bxg6 {[%clk 0:01:12]}  hxg6 {[%clk 0:00:11]} 31. Qxg6 {[%clk 0:01:10]}  Qf7 {[%clk 0:00:12]} 32. Qg4 {[%clk 0:01:07]}  Qf5 {[%clk 0:00:12]} 33. Qh4 {[%clk 0:00:56]}  Qg6 {[%clk 0:00:12]} 34. d4 {[%clk 0:00:46]}  Rf5 {[%clk 0:00:11]} 35. Nh2 {[%clk 0:00:40]}  Raf8 {[%clk 0:00:11]} 36. Rxf5 {[%clk 0:00:37]}  Rxf5 {[%clk 0:00:12]} 37. g4 {[%clk 0:00:32]}  Rf4 {[%clk 0:00:12]} 38. Qg3 {[%clk 0:00:31]}  Bh6 {[%clk 0:00:12]} 39. g5 {[%clk 0:00:23]}  Bxg5 {[%clk 0:00:10]} 40. Rg1 {[%clk 0:00:21]}  Rf5 {[%clk 0:00:06]} 41. Nf3 {[%clk 0:00:18]}  Qh5+ {[%clk 0:00:05]} 42. Kg2 {[%clk 0:00:18]}  Kf8 {[%clk 0:00:01]} 43. Kf2 {[%clk 0:00:16]} 1-0


[Site "https://www.chess.com"]

[Event "Titled Tuesday Blitz May 11 2021"]
[White "Chigaev, Maksim"]
[Black "Bon, Michael"]
[WhiteFideId "4108116"]
[BlackFideId "620696"]
[WhiteElo "2646"]
[BlackElo "2448"]
[Result "1/2-1/2"]
[Round "01"]
[TimeControl "180+1"]
[Date "2021.05.11"]
[WhiteClock "0:00:28"]
[BlackClock "0:00:09"]

1. c4 {[%clk 0:03:00]}  Nc6 {[%clk 0:02:58]} 2. Nc3 {[%clk 0:03:00]}  e5 {[%clk 0:02:57]} 3. g3 {[%clk 0:03:00]}  f5 {[%clk 0:02:55]} 4. Bg2 {[%clk 0:03:00]}  Nf6 {[%clk 0:02:55]} 5. d3 {[%clk 0:03:00]}  Bc5 {[%clk 0:02:53]} 6. Nf3 {[%clk 0:02:58]}  d6 {[%clk 0:02:50]} 7. a3 {[%clk 0:02:58]}  a6 {[%clk 0:02:49]} 8. b4 {[%clk 0:02:58]}  Ba7 {[%clk 0:02:45]} 9. O-O {[%clk 0:02:58]}  O-O {[%clk 0:02:45]} 10. e3 {[%clk 0:02:58]}  h6 {[%clk 0:02:35]} 11. Bb2 {[%clk 0:02:58]}  Be6 {[%clk 0:02:34]} 12. Rc1 {[%clk 0:02:58]}  Qe8 {[%clk 0:02:11]} 13. Nd2 {[%clk 0:02:47]}  f4 {[%clk 0:02:04]} 14. Qe2 {[%clk 0:02:29]}  Bg4 {[%clk 0:01:51]} 15. Qe1 {[%clk 0:02:22]}  Qh5 {[%clk 0:01:46]} 16. Nd5 {[%clk 0:01:24]}  f3 {[%clk 0:01:33]} 17. Bh1 {[%clk 0:01:21]}  Nxd5 {[%clk 0:01:04]} 18. cxd5 {[%clk 0:01:22]}  Ne7 {[%clk 0:01:04]} 19. Rxc7 {[%clk 0:01:23]}  Nxd5 {[%clk 0:01:03]} 20. Rxb7 {[%clk 0:01:16]}  Bh3 {[%clk 0:00:58]} 21. Nc4 {[%clk 0:00:53]}  Bxf1 {[%clk 0:00:56]} 22. Qxf1 {[%clk 0:00:54]}  Nxe3 {[%clk 0:00:36]} 23. fxe3 {[%clk 0:00:26]}  f2+ {[%clk 0:00:34]} 24. Kg2 {[%clk 0:00:27]}  Qf3+ {[%clk 0:00:23]} 25. Kh3 {[%clk 0:00:27]}  Qh5+ {[%clk 0:00:22]} 26. Kg2 {[%clk 0:00:28]}  Qf3+ {[%clk 0:00:09]} 27. Kh3 {[%clk 0:00:28]}  Qh5+ {[%clk 0:00:09]} 28. Kg2 {[%clk 0:00:28]} 1/2-1/2


[Site "https://www.chess.com"]

[Event "Titled Tuesday Blitz May 11 2021"]
[White "Davtyan, David Arm."]
[Black "Shimanov, Aleksandr"]
[WhiteFideId "13310046"]
[BlackFideId "4198603"]
[WhiteElo "2028"]
[BlackElo "2596"]
[Result "0-1"]
[Round "01"]
[TimeControl "180+1"]
[Date "2021.05.11"]
[WhiteClock "0:00:05"]
[BlackClock "0:00:30"]

1. e4 {[%clk 0:02:54]}  e6 {[%clk 0:02:57]} 2. d4 {[%clk 0:02:51]}  d5 {[%clk 0:02:57]} 3. Bd3 {[%clk 0:02:51]}  dxe4 {[%clk 0:02:50]} 4. Bxe4 {[%clk 0:02:52]}  Nf6 {[%clk 0:02:50]} 5. Bf3 {[%clk 0:02:53]}  c5 {[%clk 0:02:51]} 6. Ne2 {[%clk 0:02:53]}  Nc6 {[%clk 0:02:49]} 7. Be3 {[%clk 0:02:48]}  e5 {[%clk 0:02:44]} 8. Bxc6+ {[%clk 0:02:10]}  bxc6 {[%clk 0:02:44]} 9. dxe5 {[%clk 0:02:11]}  Qxd1+ {[%clk 0:02:45]} 10. Kxd1 {[%clk 0:02:12]}  Ng4 {[%clk 0:02:45]} 11. h3 {[%clk 0:02:07]}  Nxe3+ {[%clk 0:02:44]} 12. fxe3 {[%clk 0:02:07]}  Bf5 {[%clk 0:02:35]} 13. Nd2 {[%clk 0:02:03]}  O-O-O {[%clk 0:02:28]} 14. Ng3 {[%clk 0:01:47]}  Bg6 {[%clk 0:02:25]} 15. e4 {[%clk 0:01:32]}  Be7 {[%clk 0:02:01]} 16. Ke2 {[%clk 0:01:32]}  Rhe8 {[%clk 0:01:51]} 17. Nf3 {[%clk 0:01:25]}  Rd7 {[%clk 0:01:45]} 18. c4 {[%clk 0:01:21]}  Bd8 {[%clk 0:01:32]} 19. Rad1 {[%clk 0:01:14]}  Bc7 {[%clk 0:01:31]} 20. Rxd7 {[%clk 0:01:08]}  Kxd7 {[%clk 0:01:32]} 21. Rd1+ {[%clk 0:01:09]}  Ke6 {[%clk 0:01:26]} 22. b3 {[%clk 0:01:03]}  a5 {[%clk 0:01:20]} 23. Ke3 {[%clk 0:00:57]}  f6 {[%clk 0:01:04]} 24. Ne2 {[%clk 0:00:53]}  fxe5 {[%clk 0:01:02]} 25. Nc3 {[%clk 0:00:43]}  Bd8 {[%clk 0:01:00]} 26. Na4 {[%clk 0:00:42]}  Be7 {[%clk 0:01:01]} 27. Ne1 {[%clk 0:00:42]}  Bg5+ {[%clk 0:00:46]} 28. Ke2 {[%clk 0:00:40]}  Bxe4 {[%clk 0:00:42]} 29. Nxc5+ {[%clk 0:00:38]}  Kf5 {[%clk 0:00:43]} 30. g4+ {[%clk 0:00:19]}  Kf4 {[%clk 0:00:43]} 31. Rd7 {[%clk 0:00:17]}  Bg6 {[%clk 0:00:40]} 32. Ned3+ {[%clk 0:00:12]}  Kg3 {[%clk 0:00:37]} 33. Nf2 {[%clk 0:00:12]}  e4 {[%clk 0:00:37]} 34. Rxg7 {[%clk 0:00:10]}  e3 {[%clk 0:00:34]} 35. Nfd3 {[%clk 0:00:09]}  Kxh3 {[%clk 0:00:32]} 36. Rc7 {[%clk 0:00:05]}  Kxg4 {[%clk 0:00:32]} 37. Rxc6 {[%clk 0:00:06]}  Bh5 {[%clk 0:00:30]} 38. Rc7 {[%clk 0:00:04]}  Kh3+ {[%clk 0:00:30]} 39. Ke1 {[%clk 0:00:05]}  Bh4+ {[%clk 0:00:29]} 40. Kf1 {[%clk 0:00:05]}  e2+ {[%clk 0:00:30]} 41. Kg1 {[%clk 0:00:05]}  e1=Q+ {[%clk 0:00:30]} 0-1


[Site "https://www.chess.com"]

[Event "Titled Tuesday Blitz May 11 2021"]
[White "Deepan Chakkravarthy J."]
[Black "Omariev, Maksim"]
[WhiteFideId "5011132"]
[BlackFideId "4193423"]
[WhiteElo "2490"]
[BlackElo "2384"]
[Result "1-0"]
[Round "01"]
[TimeControl "180+1"]
[Date "2021.05.11"]
[WhiteClock "0:01:00"]
[BlackClock "0:00:01"]

1. Nf3 {[%clk 0:02:57]}  d5 {[%clk 0:02:59]} 2. g3 {[%clk 0:02:49]}  c6 {[%clk 0:02:59]} 3. Bg2 {[%clk 0:02:49]}  Nf6 {[%clk 0:03:00]} 4. O-O {[%clk 0:02:50]}  Bf5 {[%clk 0:03:01]} 5. d3 {[%clk 0:02:50]}  e6 {[%clk 0:03:01]} 6. Nbd2 {[%clk 0:02:51]}  Be7 {[%clk 0:03:02]} 7. Qe1 {[%clk 0:02:52]}  h6 {[%clk 0:03:01]} 8. e4 {[%clk 0:02:53]}  Bh7 {[%clk 0:03:02]} 9. Qe2 {[%clk 0:02:52]}  O-O {[%clk 0:03:02]} 10. Re1 {[%clk 0:02:51]}  a5 {[%clk 0:03:02]} 11. e5 {[%clk 0:02:51]}  Nfd7 {[%clk 0:03:02]} 12. Nf1 {[%clk 0:02:52]}  b5 {[%clk 0:03:02]} 13. h4 {[%clk 0:02:51]}  c5 {[%clk 0:03:02]} 14. N1h2 {[%clk 0:02:51]}  Nc6 {[%clk 0:02:58]} 15. h5 {[%clk 0:02:50]}  Kh8 {[%clk 0:02:06]} 16. Ng4 {[%clk 0:02:49]}  f5 {[%clk 0:01:45]} 17. exf6 {[%clk 0:02:47]}  Nxf6 {[%clk 0:01:45]} 18. Nge5 {[%clk 0:02:42]}  Nxe5 {[%clk 0:01:36]} 19. Nxe5 {[%clk 0:02:43]}  Qe8 {[%clk 0:01:17]} 20. g4 {[%clk 0:02:36]}  Ra6 {[%clk 0:01:11]} 21. f4 {[%clk 0:02:35]}  d4 {[%clk 0:01:02]} 22. Bd2 {[%clk 0:02:29]}  Bd6 {[%clk 0:00:56]} 23. Bf3 {[%clk 0:02:20]}  Bb8 {[%clk 0:00:40]} 24. Kg2 {[%clk 0:02:20]}  Nd7 {[%clk 0:00:39]} 25. Bc6 {[%clk 0:02:02]}  Bxe5 {[%clk 0:00:22]} 26. Bxd7 {[%clk 0:02:02]}  Qxd7 {[%clk 0:00:23]} 27. Qxe5 {[%clk 0:02:02]}  c4 {[%clk 0:00:14]} 28. Rac1 {[%clk 0:01:57]}  a4 {[%clk 0:00:09]} 29. Bb4 {[%clk 0:01:51]}  Rc8 {[%clk 0:00:06]} 30. Kg3 {[%clk 0:01:48]}  Bg8 {[%clk 0:00:01]} 31. Re4 {[%clk 0:01:41]}  Qb7 {[%clk 0:00:01]} 32. Rxd4 {[%clk 0:01:39]}  cxd3 {[%clk 0:00:01]} 33. Rxd3 {[%clk 0:01:39]}  Rac6 {[%clk 0:00:02]} 34. c3 {[%clk 0:01:38]}  Rc4 {[%clk 0:00:02]} 35. Re1 {[%clk 0:01:35]}  Bh7 {[%clk 0:00:02]} 36. Rd2 {[%clk 0:01:29]}  R8c6 {[%clk 0:00:02]} 37. Rd8+ {[%clk 0:01:27]}  Bg8 {[%clk 0:00:02]} 38. g5 {[%clk 0:01:24]}  Rc8 {[%clk 0:00:02]} 39. Rxc8 {[%clk 0:01:22]}  Rxc8 {[%clk 0:00:03]} 40. gxh6 {[%clk 0:01:22]}  Rd8 {[%clk 0:00:02]} 41. Bd6 {[%clk 0:01:09]}  Qd7 {[%clk 0:00:02]} 42. Kh4 {[%clk 0:01:06]}  Kh7 {[%clk 0:00:02]} 43. Rg1 {[%clk 0:01:04]}  gxh6 {[%clk 0:00:02]} 44. Bc5 {[%clk 0:01:01]}  Qf7 {[%clk 0:00:02]} 45. Bd4 {[%clk 0:01:00]}  Qf5 {[%clk 0:00:01]} 1-0


[Site "https://www.chess.com"]